fUSD/lending_fUSD_20251119
["ID","MTS","AMOUNT","RATE_DAILY","PERIOD"]
[394401208,1763532641937,-300.0,0.0004132,2]
[394401210,1763532641948,-150.0,0.00041352,14]
[394401212,1763532641958,-500.0,0.00041352,2]
[394401214,1763532641968,-3445.29,0.00041369,2]
[394401216,1763532641978,-300.0,0.00041369,2]
[394401218,1763532641988,-517.44,0.00041369,2]
[394401220,1763532642000,-158.86102011,0.0004137,30]
[394401222,1763532642010,-150.0,0.0004137,30]
[394401224,1763532642020,-15284.9405,0.00041373,2]
[394401226,1763532642031,-1000.0,0.00041373,2]
[394401228,1763532642041,-150.0,0.00041382,14]
[394401230,1763532642051,-207.19643298,0.00041382,2]
[394401232,1763532642061,-600.0,0.000414,15]
[394401234,1763532642071,-756.0,0.00041402,30]
[394401236,1763532642081,-1020.67808812,0.00041409,7]
[394401238,1763532642091,-500.0,0.00041409,120]
[394401240,1763532642101,-500.0,0.00041409,7]
[394401242,1763532642110,-300.0,0.00041411,2]
[394401244,1763532642120,-500.0,0.00041419,2]
[394401246,1763532642130,-157719.46513873,0.0004142,2]
[394401248,1763532642140,-235.322897,0.0004142,120]
[394401250,1763532642149,-235.322897,0.0004142,120]
[394401252,1763532642159,-151.0,0.0004142,120]
[394401255,1763532642174,-151.0,0.0004142,120]
[394401257,1763532642185,-151.0,0.0004142,120]
[394401259,1763532642195,-167.713259,0.0004142,120]
[394401261,1763532642205,-151.0,0.0004142,120]
[394401263,1763532642216,-151.0,0.0004142,60]
[394401265,1763532642226,-151.0,0.0004142,120]
[394401267,1763532642236,-151.0,0.0004142,120]
[394401269,1763532642245,-177.464624,0.0004142,120]
[394401270,1763532642256,-177.464624,0.0004142,120]
[394401272,1763532642266,-177.464624,0.0004142,120]
[394401273,1763532642275,-177.464624,0.0004142,120]
[394401274,1763532642284,-161.345344,0.0004142,120]
[394401275,1763532642293,-153.17234,0.0004142,120]
[394401276,1763532642302,-153.095546,0.0004142,30]
[394401277,1763532642312,-153.980676,0.0004142,120]
[394401278,1763532642321,-151.0,0.0004142,15]
[394401279,1763532642330,-154.576637,0.0004142,120]
[394401280,1763532642340,-153.045156,0.0004142,120]
[394401296,1763532642509,-1474.37479062,0.00041423,2]
[394401298,1763532642519,-8045.53390587,0.00041426,15]
[394401300,1763532642528,-5806.17575973,0.00041427,15]
[394401302,1763532642538,-300.0,0.00041437,2]
[394401304,1763532642547,-295.499,0.00041457,2]
[394401306,1763532642557,-200.0,0.00041457,2]
[394401308,1763532642566,-210.0,0.00041457,2]
[394401310,1763532642575,-169.446,0.00041457,2]
[394401313,1763532642585,-288.139,0.00041457,2]
[394401315,1763532642594,-150.851,0.00041457,2]
[394401317,1763532642603,-150.268,0.00041457,2]
[394401319,1763532642612,-150.0,0.00041457,2]
[394401321,1763532642621,-150.342,0.00041457,2]
[394401323,1763532642630,-609.0,0.00041457,2]
[394401325,1763532642639,-1319.0,0.00041457,2]
[394401327,1763532642648,-3433.0,0.00041457,2]
[394401329,1763532642657,-8576.17020993,0.00041469,2]
[394401331,1763532642666,-300.0,0.00041499,2]
[394401333,1763532642676,-600.0,0.000415,15]
[394401335,1763532642684,-511.88267857,0.00041501,30]
[394401337,1763532642694,-1000.0,0.00041508,14]
[394401339,1763532642703,-150.0,0.00041509,14]
[394401341,1763532642713,-285.64612,0.00041519,30]
[394401343,1763532642722,-300.0,0.00041521,2]
[394401345,1763532642732,-500.0,0.00041527,120]
[394401347,1763532642742,-2840.0,0.00041528,7]
[394401349,1763532642752,-162.97952069,0.00041533,7]
[394401351,1763532642761,-300.0,0.00041533,2]
[394401353,1763532642771,-283.4544093,0.00041555,60]
[394401355,1763532642780,-300.0,0.00041567,2]
[394401357,1763532642790,-150.0,0.00041568,14]
[394401359,1763532642799,-300.0,0.00041575,2]
[394401361,1763532642808,-500.0,0.00041588,7]
[394401363,1763532642817,-515.01217463,0.00041589,120]
[394401365,1763532642826,-300.0,0.00041595,2]
[394401367,1763532642835,-215.46591517,0.00041599,120]
[394401369,1763532642844,-593.89617414,0.000416,2]
[394401371,1763532642854,-2000.0,0.000416,2]
[394401373,1763532642863,-1000.0,0.000416,7]
[394401375,1763532642872,-600.0,0.000416,15]
[394401377,1763532642882,-2000.0,0.00041627,3]
[394401379,1763532642891,-4298.0419,0.00041635,30]
[394401381,1763532642900,-3445.29,0.00041643,2]
[394401382,1763532642910,-300.0,0.00041643,2]
[394401384,1763532642919,-517.44,0.00041643,2]
[394401386,1763532642929,-1000.0,0.00041667,14]
[394401388,1763532642939,-156.99,0.0004169,14]
[394401391,1763532642948,-166.41579124,0.000417,120]
[394401393,1763532642958,-188.58154472,0.000417,120]
[394401395,1763532642968,-199.74447139,0.000417,120]
[394401396,1763532642977,-198.54828745,0.000417,14]
[394401398,1763532642986,-600.0,0.000417,15]
[394401400,1763532642996,-500.0,0.00041711,120]
[394401402,1763532643006,-500.0,0.00041711,7]
[394401404,1763532643015,-500.0,0.00041711,2]
[394401406,1763532643025,-500.0,0.00041711,2]
[394401408,1763532643034,-203808.4130326,0.00041712,2]
[394401410,1763532643044,-30149.2112183,0.00041712,2]
[394401413,1763532643054,-23330.0475954,0.00041712,2]
[394401414,1763532643064,-151.0,0.00041712,120]
[394401416,1763532643073,-151.0,0.00041712,120]
[394401418,1763532643083,-159.230608,0.00041712,120]
[394401420,1763532643092,-151.0,0.00041712,120]
[394401422,1763532643103,-151.0,0.00041712,120]
[394401425,1763532643113,-151.0,0.00041712,120]
[394401426,1763532643122,-151.0,0.00041712,120]
[394401428,1763532643131,-151.0,0.00041712,120]
[394401430,1763532643141,-151.0,0.00041712,120]
[394401433,1763532643154,-163.500584,0.00041712,120]
[394401435,1763532643164,-151.0,0.00041712,14]
[394401437,1763532643177,-156.46601,0.00041712,120]
[394401439,1763532643187,-164.319033,0.00041712,120]
[394401441,1763532643196,-151.0,0.00041712,120]
[394401443,1763532643205,-151.0,0.00041712,120]
[394401445,1763532643216,-151.0,0.00041712,120]
[394401447,1763532643226,-151.0,0.00041712,120]
[394401449,1763532643235,-151.0,0.00041712,120]
[394401451,1763532643248,-151.0,0.00041712,120]
[394401453,1763532643258,-151.0,0.00041712,120]
[394401455,1763532643267,-151.0,0.00041712,120]
[394401457,1763532643276,-151.0,0.00041712,120]
[394401459,1763532643285,-151.0,0.00041712,120]
[394401461,1763532643295,-285.330623,0.00041712,120]
[394401463,1763532643305,-151.0,0.00041712,120]
[394401465,1763532643315,-151.0,0.00041712,120]
[394401467,1763532643323,-265.852755,0.00041712,120]
[394401469,1763532643333,-151.0,0.00041712,120]
[394401471,1763532643342,-188.231192,0.00041712,120]
[394401473,1763532643352,-188.231192,0.00041712,120]
[394401475,1763532643361,-188.231192,0.00041712,120]
[394401477,1763532643371,-188.231192,0.00041712,120]
[394401479,1763532643380,-206.455705,0.00041712,30]
[394401481,1763532643389,-206.455705,0.00041712,30]
[394401483,1763532643398,-206.455705,0.00041712,30]
[394401485,1763532643408,-206.455705,0.00041712,30]
[394401487,1763532643417,-151.0,0.00041712,28]
[394401488,1763532643426,-151.0,0.00041712,28]
[394401489,1763532643436,-151.0,0.00041712,120]
[394401490,1763532643446,-153.918792,0.00041712,120]
[394401491,1763532643456,-151.0,0.00041712,120]
[394401492,1763532643465,-151.0,0.00041712,120]
[394401493,1763532643475,-151.0,0.00041712,120]
[394401494,1763532643485,-156.99,0.00041713,14]
[394401495,1763532643494,-285.64612,0.00041719,30]
[394401496,1763532643504,-235.322897,0.00041721,120]
[394401497,1763532643514,-235.322897,0.00041721,120]
[394401498,1763532643523,-151.0,0.00041721,120]
[394401499,1763532643533,-151.0,0.00041721,120]
[394401500,1763532643546,-151.0,0.00041721,120]
[394401501,1763532643556,-151.0,0.00041721,120]
[394401503,1763532643565,-216.84744,0.00041721,120]
[394401504,1763532643575,-177.464624,0.00041721,120]
[394401506,1763532643584,-177.464624,0.00041721,120]
[394401508,1763532643594,-177.464624,0.00041721,120]
[394401509,1763532643604,-177.464624,0.00041721,120]
[394401510,1763532643613,-151.0,0.00041721,15]
[394401511,1763532643623,-5806.17575973,0.00041728,15]
[394401512,1763532643632,-317.11035559,0.00041728,2]
[394401513,1763532643642,-8045.53390587,0.00041728,15]
[394401514,1763532643652,-4631.13050952,0.00041728,2]
[394401515,1763532643661,-169.01403616,0.00041728,2]
[394401516,1763532643671,-2547.82866827,0.00041728,120]
[394401517,1763532643680,-500.0,0.00041731,7]
[394401518,1763532643689,-169.01403613,0.00041731,2]
[394401519,1763532643699,-169.01403613,0.00041735,2]
[394401520,1763532643708,-317.11035559,0.00041737,2]
[394401521,1763532643718,-4631.13050952,0.00041737,2]
[394401522,1763532643728,-169.01403613,0.00041738,2]
[394401523,1763532643737,-169.01403613,0.00041742,2]
[394401524,1763532643746,-529.77254866,0.00041744,120]
[394401525,1763532643756,-163.21651053,0.00041745,4]
[394401526,1763532643765,-317.11035559,0.00041745,2]
[394401527,1763532643775,-4631.13050952,0.00041745,2]
[394401528,1763532643784,-169.01403613,0.00041745,2]
[394401529,1763532643794,-292.70268575,0.00041747,2]
[394401530,1763532643803,-500.0,0.00041779,2]
[394401531,1763532643812,-300.0,0.00041788,2]
[394401532,1763532643822,-300.0,0.00041789,2]
[394401533,1763532643831,-150.0,0.000418,60]
[394401534,1763532643840,-150.0,0.000418,47]
[394401535,1763532643850,-996.0,0.000418,30]
[394401536,1763532643860,-309.0,0.000418,30]
[394401537,1763532643869,-206.0,0.000418,30]
[394401538,1763532643878,-1026.0,0.000418,15]
[394401539,1763532643888,-455.0,0.000418,30]
[394401540,1763532643898,-790.52223395,0.000418,30]
[394401541,1763532643908,-502.99680416,0.00041803,120]
[394401542,1763532643917,-150.0,0.00041804,14]
[394401543,1763532643927,-488.0,0.00041808,120]
[394401544,1763532643936,-164.0,0.00041808,120]
[394401545,1763532643946,-1020.67808812,0.00041818,7]
[394401546,1763532643955,-1020.67808812,0.00041818,7]
[394401547,1763532643964,-500.0,0.0004182,7]
[394401548,1763532643976,-500.0,0.0004182,2]
[394401549,1763532643986,-300.0,0.0004182,120]
[394401550,1763532643995,-756.0,0.0004182,30]
[394401551,1763532644005,-235.322897,0.00041821,120]
[394401552,1763532644014,-235.322897,0.00041821,120]
[394401553,1763532644023,-291.427223,0.00041821,120]
[394401554,1763532644033,-151.0,0.00041821,120]
[394401555,1763532644042,-194.68709,0.00041821,120]
[394401556,1763532644052,-151.0,0.00041821,120]
[394401557,1763532644061,-177.464624,0.00041821,120]
[394401558,1763532644070,-177.464624,0.00041821,120]
[394401559,1763532644080,-177.464624,0.00041821,120]
[394401560,1763532644089,-177.464624,0.00041821,120]
[394401561,1763532644099,-300.0,0.00041823,2]
[394401562,1763532644108,-742.36112781,0.00041825,2]
[394401563,1763532644118,-742.36112781,0.00041825,2]
[394401564,1763532644127,-2000.0,0.00041827,120]
[394401565,1763532644136,-200.0,0.00041827,120]
[394401566,1763532644145,-150.0,0.00041827,2]
[394401567,1763532644155,-4194.88336797,0.00041827,2]
[394401568,1763532644164,-500.0,0.00041827,7]
[394401569,1763532644175,-500.0,0.00041827,7]
[394401570,1763532644185,-500.0,0.00041827,7]
[394401571,1763532644194,-500.0,0.00041827,7]
[394401572,1763532644203,-500.0,0.00041827,7]
[394401573,1763532644221,-500.0,0.00041827,7]
[394401574,1763532644230,-500.0,0.00041827,7]
[394401575,1763532644240,-500.0,0.00041827,7]
[394401576,1763532644251,-521.79902814,0.00041827,7]
[394401577,1763532644261,-500.0,0.00041827,2]
[394401578,1763532644270,-500.0,0.00041827,2]
[394401579,1763532644280,-500.0,0.00041827,2]
[394401580,1763532644289,-500.0,0.00041827,2]
[394401581,1763532644299,-500.0,0.00041827,2]
[394401582,1763532644308,-500.0,0.00041827,2]
[394401583,1763532644317,-500.0,0.00041827,2]
[394401584,1763532644327,-500.0,0.00041827,2]
[394401585,1763532644336,-335.82259186,0.00041827,2]
[394401586,1763532644345,-10262.65247921,0.00041827,27]
[394401587,1763532644354,-1719578.36900529,0.00041828,120]
[394401588,1763532644378,-652.05049415,0.00039103,15]
[394401589,1763532644388,-34.61598948,0.00041828,120]
[394401590,1763532644490,-480.70139748,0.00039103,15]
[394401591,1763532644720,-171.34909667,0.00039103,15]
[394401592,1763532644730,-157.42090333,0.00039103,15]
[394401593,1763532644767,-494.62959082,0.00039103,15]
[394401594,1763532644776,-652.05049415,0.00039103,15]
[394401595,1763532644785,-498.93379292,0.00039103,15]
[394401596,1763532644796,-153.11670123,0.00039103,15]
[394401597,1763532644806,-312.97229877,0.00039103,15]
[394401598,1763532644824,-339.07819538,0.00039103,15]
[394401599,1763532644833,-111.03121678,0.00039103,15]
[394401600,1763532644986,-541.01927737,0.00039103,15]
[394401601,1763532644996,-652.05049415,0.00039103,15]
[394401602,1763532645005,-652.05049415,0.00039103,15]
[394401603,1763532645014,-652.05049415,0.00039103,15]
[394401604,1763532645024,-652.05049415,0.00039103,15]
[394401605,1763532645033,-652.05049415,0.00039103,15]
[394401606,1763532645042,-652.05049415,0.00039103,15]
[394401607,1763532645052,-652.05049415,0.00039103,15]
[394401608,1763532645061,-652.05049415,0.00039103,15]
[394401609,1763532645071,-652.05049415,0.00039103,15]
[394401610,1763532645080,-652.05049415,0.00039103,15]
[394401611,1763532645090,-652.05049415,0.00039103,15]
[394401612,1763532645099,-652.05049415,0.00039103,15]
[394401613,1763532645108,-458.05616202,0.00039103,15]
[394401614,1763532645124,-193.99433213,0.00039103,15]
[394401615,1763532645134,-448.57568587,0.00039103,15]
[394401622,1763532645488,-203.47480828,0.00039103,15]
[394401623,1763532645497,-652.05049415,0.00039103,15]
[394401624,1763532645507,-652.05049415,0.00039103,15]
[394401625,1763532645517,-652.05049415,0.00039103,15]
[394401626,1763532645526,-652.05049415,0.00039103,15]
[394401627,1763532645535,-652.05049415,0.00039103,15]
[394401628,1763532645544,-652.05049415,0.00039103,15]
[394401629,1763532645554,-652.05049415,0.00039103,15]
[394401630,1763532645563,-652.05049415,0.00039103,15]
[394401631,1763532645573,-652.05049415,0.00039103,15]
[394401632,1763532645583,-652.05049415,0.00039103,15]
[394401633,1763532645593,-652.05049415,0.00039103,15]
[394401634,1763532645603,-652.05049415,0.00039103,15]
[394401635,1763532645613,-652.05049415,0.00039103,15]
[394401636,1763532645623,-652.05049415,0.00039103,15]
[394401637,1763532645633,-652.05049415,0.00039103,15]
[394401638,1763532645642,-652.05049415,0.00039103,15]
[394401639,1763532645651,-652.05049415,0.00039103,15]
[394401640,1763532645660,-1.44468342,0.00039103,15]
[394401641,1763532645773,-285.93181421,0.00039103,15]
[394402097,1763532665544,200.0,0.00041845,30]
[394402098,1763532665701,6888.0,0.00041845,120]
[394402099,1763532666150,200.0,0.00041845,30]
[394402100,1763532666349,7142.856,0.00041845,120]
[394402101,1763532666971,7407.141672,0.00041845,120]
[394402102,1763532667613,7681.20591386,0.00041845,120]
[394402103,1763532668079,500.0,0.00041845,120]
[394402104,1763532668132,442.62472307,0.00041845,120]
[394402105,1763532668230,7965.41053268,0.00041845,120]
[394402106,1763532668681,500.0,0.00041845,120]
[394402107,1763532668842,8260.13072239,0.00041845,120]
[394402108,1763532669318,500.0,0.00041845,120]
[394402109,1763532669548,8565.75555911,0.00041845,120]
[394402110,1763532669997,500.0,0.00041845,120]
[394402111,1763532670161,8882.6885148,0.00041845,120]
[394402112,1763532670658,500.0,0.00041845,120]
[394402113,1763532670767,9211.34798985,0.00041845,120]
[394402114,1763532671313,500.0,0.00041845,120]
[394402115,1763532671915,9211.34798985,0.00041845,120]
[394402116,1763532671969,500.0,0.00041845,120]
[394402117,1763532672608,500.0,0.00041845,120]
[394402118,1763532673253,500.0,0.00041845,120]
[394402119,1763532673893,500.0,0.00041845,120]
[394402120,1763532674525,500.0,0.00041845,120]
[394402121,1763532734809,313.85231661,0.00041845,30]
[394402122,1763532736442,6888.0,0.00041845,120]
[394402123,1763532737060,7142.856,0.00041845,120]
[394402124,1763532737666,7407.141672,0.00041845,120]
[394402125,1763532738329,7681.20591386,0.00041845,120]
[394402126,1763532739003,7965.41053268,0.00041845,120]
[394402127,1763532739630,8260.13072239,0.00041845,120]
[394402130,1763532788713,277.82411966,0.00041845,120]
[394402131,1763532907967,2970.32,0.00030137,120]
[394402132,1763532963936,200.0,0.00041845,30]
[394402133,1763533108277,333.0,0.00030136,120]
[394402135,1763533150840,500.0,0.00041845,120]
[394402136,1763533151451,500.0,0.00041845,120]
[394402137,1763533152056,500.0,0.00041845,120]
[394402138,1763533152652,500.0,0.00041845,120]
[394402139,1763533153263,500.0,0.00041845,120]
[394402140,1763533153904,500.0,0.00041845,120]
[394402141,1763533154508,500.0,0.00041845,120]
[394402142,1763533155686,500.0,0.00041845,120]
[394402143,1763533156426,500.0,0.00041845,120]
[394402144,1763533156962,500.0,0.00041845,120]
[394402145,1763533261472,200.0,0.00041845,30]
[394402146,1763533551913,2811.29,0.00015,10]
[394402147,1763533613528,5066.7,0.000162,5]
[394402149,1763533670924,1150.00284783,0.00015,10]
[394402162,1763533831587,-228.65,0.0001924,2]
[394402163,1763533831597,-228.65,0.00020252,2]
[394402164,1763533831607,-228.65,0.00021265,2]
[394402165,1763533831616,-163.38,0.000222,2]
[394402166,1763533831626,-228.65,0.00022277,2]
[394402167,1763533831635,-228.65,0.0002329,2]
[394402168,1763533831645,-228.65,0.00024303,2]
[394402169,1763533831654,-228.65,0.00025315,2]
[394402170,1763533831664,-177.22059077,0.00026228,2]
[394402171,1763533831674,-228.65,0.00026328,2]
[394402172,1763533831684,-155.0,0.0002734,2]
[394402173,1763533831693,-228.65,0.0002734,2]
[394402174,1763533831703,-555.0,0.00028352,2]
[394402175,1763533831712,-228.65,0.00028353,2]
[394402176,1763533831721,-341.0,0.00028999,2]
[394402177,1763533831731,-300.0,0.00028999,2]
[394402178,1763533831741,-11085.89067428,0.00029,2]
[394402179,1763533831751,-261.56823534,0.00029,11]
[394402180,1763533831760,-228.65,0.00029366,2]
[394402181,1763533831770,-1000.0,0.00029763,2]
[394402182,1763533831779,-504.29637325,0.00030348,13]
[394402183,1763533831788,-228.65,0.00030378,2]
[394402184,1763533831798,-21212.69790852,0.00030888,60]
[394402185,1763533831808,-420.0,0.00031287,2]
[394402186,1763533831817,-228.65,0.00031391,2]
[394402187,1763533831827,-773.98292137,0.00031697,16]
[394402188,1763533831836,-753.25,0.0003199,3]
[394402189,1763533831846,-153.25016852,0.00031999,2]
[394402190,1763533831856,-506.26422673,0.00031999,2]
[394402191,1763533831865,-153.63997531,0.00031999,2]
[394402192,1763533831875,-500.0,0.00031999,2]
[394402193,1763533831884,-500.0,0.00031999,2]
[394402194,1763533831894,-500.0,0.00031999,2]
[394402195,1763533831903,-500.0,0.00031999,2]
[394402196,1763533831912,-500.0,0.00031999,2]
[394402197,1763533831921,-500.0,0.00031999,2]
[394402198,1763533831931,-500.0,0.00031999,2]
[394402200,1763533831940,-500.0,0.00031999,2]
[394402202,1763533831949,-500.0,0.00031999,2]
[394402203,1763533831958,-376.40953524,0.00031999,2]
[394402205,1763533831968,-500.0,0.00031999,2]
[394402207,1763533831977,-500.0,0.00031999,2]
[394402209,1763533831986,-500.0,0.00031999,2]
[394402210,1763533831995,-500.0,0.00031999,2]
[394402213,1763533832009,-500.0,0.00031999,2]
[394402216,1763533832019,-500.0,0.00031999,2]
[394402218,1763533832030,-500.0,0.00031999,2]
[394402222,1763533832040,-500.0,0.00031999,2]
[394402225,1763533832050,-500.0,0.00031999,2]
[394402227,1763533832060,-500.0,0.00031999,2]
[394402230,1763533832069,-500.0,0.00031999,2]
[394402233,1763533832081,-500.0,0.00031999,2]
[394402236,1763533832091,-500.0,0.00031999,2]
[394402239,1763533832100,-500.0,0.00031999,2]
[394402242,1763533832109,-500.0,0.00031999,2]
[394402245,1763533832118,-500.0,0.00031999,2]
[394402248,1763533832128,-500.0,0.00031999,2]
[394402251,1763533832137,-500.0,0.00031999,2]
[394402254,1763533832145,-500.0,0.00031999,2]
[394402256,1763533832155,-500.0,0.00031999,2]
[394402260,1763533832164,-500.0,0.00031999,2]
[394402263,1763533832173,-500.0,0.00031999,2]
[394402266,1763533832182,-500.0,0.00031999,2]
[394402269,1763533832191,-500.0,0.00031999,2]
[394402272,1763533832200,-500.0,0.00031999,2]
[394402275,1763533832209,-500.0,0.00031999,2]
[394402277,1763533832219,-500.0,0.00031999,2]
[394402280,1763533832229,-500.0,0.00031999,2]
[394402282,1763533832238,-500.0,0.00031999,2]
[394402284,1763533832247,-500.0,0.00031999,2]
[394402286,1763533832257,-500.0,0.00031999,2]
[394402288,1763533832267,-500.0,0.00031999,2]
[394402290,1763533832276,-264.04550391,0.00031999,2]
[394402292,1763533832286,-500.0,0.00031999,2]
[394402294,1763533832295,-500.0,0.00031999,2]
[394402296,1763533832305,-500.0,0.00031999,2]
[394402298,1763533832315,-500.0,0.00031999,2]
[394402300,1763533832325,-500.0,0.00031999,2]
[394402302,1763533832334,-500.0,0.00031999,2]
[394402304,1763533832343,-500.0,0.00031999,2]
[394402306,1763533832352,-500.0,0.00031999,2]
[394402308,1763533832361,-500.0,0.00031999,2]
[394402310,1763533832371,-500.0,0.00031999,2]
[394402312,1763533832380,-500.0,0.00031999,2]
[394402314,1763533832389,-500.0,0.00031999,2]
[394402316,1763533832398,-500.0,0.00031999,2]
[394402318,1763533832408,-500.0,0.00031999,2]
[394402320,1763533832417,-500.0,0.00031999,2]
[394402322,1763533832427,-500.0,0.00031999,2]
[394402324,1763533832436,-500.0,0.00031999,2]
[394402326,1763533832445,-500.0,0.00031999,2]
[394402328,1763533832454,-500.0,0.00031999,2]
[394402330,1763533832464,-500.0,0.00031999,2]
[394402332,1763533832473,-500.0,0.00031999,2]
[394402334,1763533832482,-500.0,0.00031999,2]
[394402336,1763533832491,-500.0,0.00031999,2]
[394402338,1763533832501,-480.03995294,0.00031999,2]
[394402340,1763533832515,-500.0,0.00031999,2]
[394402342,1763533832524,-500.0,0.00031999,2]
[394402344,1763533832533,-500.0,0.00031999,2]
[394402346,1763533832543,-500.0,0.00031999,2]
[394402347,1763533832553,-389.20159812,0.00031999,2]
[394402350,1763533832566,-500.0,0.00031999,2]
[394402352,1763533832576,-500.0,0.00031999,2]
[394402354,1763533832586,-500.0,0.00031999,2]
[394402356,1763533832595,-500.0,0.00031999,2]
[394402358,1763533832604,-500.0,0.00031999,2]
[394402360,1763533832613,-500.0,0.00031999,2]
[394402362,1763533832623,-500.0,0.00031999,2]
[394402364,1763533832632,-249.84748898,0.00031999,2]
[394402366,1763533832641,-414.67783564,0.00031999,2]
[394402368,1763533832650,-500.0,0.00031999,2]
[394402370,1763533832660,-500.0,0.00031999,2]
[394402372,1763533832670,-500.0,0.00031999,2]
[394402374,1763533832679,-500.0,0.00031999,2]
[394402376,1763533832687,-500.0,0.00031999,2]
[394402378,1763533832696,-500.0,0.00031999,2]
[394402380,1763533832705,-500.0,0.00031999,2]
[394402382,1763533832714,-500.0,0.00031999,2]
[394402384,1763533832724,-500.0,0.00031999,2]
[394402386,1763533832733,-500.0,0.00031999,2]
[394402388,1763533832742,-500.0,0.00031999,2]
[394402390,1763533832751,-500.0,0.00031999,2]
[394402392,1763533832761,-152.05049416,0.00031999,2]
[394402394,1763533832770,-131177.03874361,0.00032,120]
[394402396,1763533832783,-335.31456548,0.00032,120]
[394402398,1763533832794,-578.1981307,0.00032,120]
[394402401,1763533832805,-68109.37423193,0.00032,120]
[394402403,1763533832814,-5216.0191865,0.00032,120]
[394402405,1763533832825,-479.42350612,0.00032,120]
[394402406,1763533832834,-307.20550538,0.00032032,2]
[394402409,1763533832844,-26581.10323454,0.00032109,14]
[394402411,1763533832853,-177.22059077,0.00032132,2]
[394402412,1763533832862,-500.0,0.00032173,5]
[394402414,1763533832871,-500.38976423,0.00032173,5]
[394402416,1763533832881,-500.0,0.00032173,5]
[394402418,1763533832890,-9999.99,0.00032232,2]
[394402420,1763533832899,-2783.33,0.00032232,2]
[394402422,1763533832909,-930.85,0.00032232,2]
[394402424,1763533832918,-150.99,0.00032232,2]
[394402427,1763533832928,-228.65,0.00032403,2]
[394402429,1763533832938,-500.0,0.00032877,7]
[394402430,1763533832947,-500.0,0.00032877,7]
[394402432,1763533832960,-444.11263037,0.00032877,7]
[394402433,1763533832970,-163.0,0.00033,30]
[394402434,1763533832980,-2091.3059293,0.00033,7]
[394402435,1763533832989,-1062.81754436,0.00033045,19]
[394402436,1763533832999,-228.65,0.00033416,2]
[394402437,1763533833008,-307.20550531,0.00033417,2]
[394402438,1763533833018,-587.0,0.00033755,2]
[394402439,1763533833027,-163.0,0.00034,31]
[394402440,1763533833037,-1000.0,0.00034126,2]
[394402441,1763533833046,-308.001,0.00034313,38]
[394402442,1763533833055,-1695.834,0.00034313,38]
[394402443,1763533833065,-1366.78071149,0.00034393,22]
[394402444,1763533833076,-228.65,0.00034429,2]
[394402445,1763533833086,-150.0,0.00034475,2]
[394402446,1763533833095,-250.0,0.00034553,2]
[394402448,1763533833104,-4506.86,0.00034597,2]
[394402450,1763533833114,-307.20550531,0.00034802,2]
[394402452,1763533833123,-238.37,0.00035192,60]
[394402454,1763533833132,-1154.82930204,0.0003541,2]
[394402456,1763533833142,-228.65,0.00035441,2]
[394402458,1763533833151,-1683.37043113,0.00035741,25]
[394402460,1763533833161,-307.20550531,0.00036187,2]
[394402462,1763533833171,-823.0,0.00036418,2]
[394402464,1763533833180,-228.65,0.00036454,2]
[394402466,1763533833189,-500.0,0.00036845,30]
[394402468,1763533833199,-500.0,0.00036986,15]